bitfinex/quotes_ETHUSD_20220213
["timestamp","ask_amount","ask_price","bid_price","bid_amount"]
[1644759279609,0.84848,2946.8,2946.4,2.02495604]
[1644759279807,0.0102761,2946.7,2946.4,2.03523335]
[1644759280607,0.84848,2946.8,2946.4,0.84854]
[1644759280810,2.82952,2946.9,2946.4,0.84854]
[1644759280811,0.8485,2946.6,2946.4,0.84854]
[1644759281012,0.8485,2946.6,2946.4,0.85881731]
[1644759282011,0.8485,2946.6,2946.4,0.84854]
[1644759282212,0.8485,2946.6,2946.4,0.85881722]
[1644759283010,0.8485,2946.6,2946.4,0.84854]
[1644759283457,0.8485,2946.6,2946.4,0.85881592]
[1644759283656,0.8485,2946.6,2946.4,0.01027592]
[1644759283858,0.01027471,2946.7,2946.4,0.01027592]
[1644759284358,2.82951,2946.9,2946.3,1.69694]
[1644759284559,0.0102748,2946.7,2946.4,0.01027601]
[1644759284958,0.84849,2946.6,2946.4,0.85882601]
[1644759285559,0.84849,2946.6,2946.4,0.84855]
[1644759285757,0.84849,2946.6,2946.4,0.85882592]
[1644759286764,0.84849,2946.6,2946.4,0.84855]
[1644759287014,0.84849,2946.6,2946.4,0.85882601]
[1644759287605,0.01027479,2946.7,2946.4,0.85882601]
[1644759288006,0.84846,2946.8,2946.4,0.84855]
[1644759288206,0.01027489,2946.7,2946.4,0.8588261]
[1644759288807,0.84849,2946.6,2946.4,0.8588261]
[1644759289209,0.84849,2946.6,2946.4,0.84855]
[1644759289408,0.84849,2946.6,2946.4,0.858826]
[1644759289608,0.84849,2946.6,2946.3,1.20809705]
[1644759290011,1.44363992,2946.5,2946.3,1.20809705]
[1644759290210,1.44363992,2946.4,2946.3,1.20809705]
[1644759290615,1.44363992,2946.7,2946.3,4.49546264]
[1644759290857,1.44363992,2946.8,2946.3,5.34380264]
[1644759291257,1.44363992,2946.8,2946.3,2.05643705]
[1644759291457,1.44363992,2946.8,2946.4,0.84835]
[1644759292055,1.44363992,2946.7,2946.4,0.84835]
[1644759292256,1.44363992,2946.6,2946.4,0.84835]
[1644759292455,1.44363992,2946.5,2946.4,0.84835]
[1644759292856,1.44363992,2946.9,2946.4,0.84835]
[1644759293055,0.00552624,2946.6,2946.4,0.84835]
[1644759293258,1.44363992,2946.5,2946.4,0.84835]
[1644759294258,0.0108644,2946.6,2946.4,0.84835]
[1644759294506,1.44363992,2946.5,2946.4,0.84835]
[1644759296510,0.0108644,2946.6,2946.4,0.84835]
[1644759296711,1.44363992,2946.5,2946.4,0.84835]
[1644759299962,1.44363992,2946.5,2945.9,1.01809]
[1644759299963,1.44363992,2946.5,2945.9,0.1696]
[1644759300164,0.25764601,2946.3,2945.8,0.00371203]
[1644759300366,1.44363992,2946.2,2945.8,0.00371203]
[1644759300764,2.29231992,2946.2,2945.8,0.00371203]
[1644759300968,1.44363992,2946.1,2945.8,0.00371203]
[1644759301167,1.44363992,2946.1,2945.6,0.25]
[1644759301168,1.44363992,2946.1,2945.6,0.42331203]
[1644759301369,1.44363992,2946.1,2945.9,0.00534549]
[1644759301568,1.44363992,2946.1,2945.9,0.85403549]
[1644759301770,2.29234992,2946.1,2945.9,0.85403549]
[1644759302011,1.44363992,2946.0,2945.9,0.85403549]
[1644759302410,1.44363992,2946.0,2945.9,0.84869]
[1644759306564,1.44363992,2946.0,2945.8,0.85959239]
[1644759306764,1.44363992,2946.0,2945.8,0.01087239]
[1644759306964,3.29772062,2945.9,2945.8,0.01087239]
[1644759307165,4.74136054,2945.9,2945.6,0.00371203]
[1644759307363,2.29249992,2945.8,2945.3,0.04349644]
[1644759307567,1.44363992,2945.7,2945.3,0.04349644]
[1644759308366,2.29254992,2945.7,2945.2,0.00371203]
[1644759308566,1.44363992,2945.6,2945.4,0.0108732]
[1644759309610,0.84878,2945.8,2945.1,0.00371203]
[1644759309910,1.44402486,2945.7,2945.4,0.0108732]
[1644759310113,1.44402486,2945.7,2945.5,0.84878]
[1644759310310,0.1696,2946.2,2945.5,2.01408827]
[1644759310511,1.44391355,2946.1,2945.5,2.01408827]
[1644759310711,1.44391355,2946.0,2945.6,0.00371203]
[1644759310917,1.44391355,2945.9,2945.6,0.00371203]
[1644759311215,2.31097156,2946.4,2945.7,0.85943257]
[1644759311423,1.44389533,2946.3,2945.8,0.00371203]
[1644759311613,1.44389533,2946.3,2945.7,0.01087257]
[1644759311818,1.44389533,2946.2,2945.7,0.01087257]
[1644759312015,4.66099638,2946.1,2945.5,0.00371203]
[1644759312316,1.4425487,2946.0,2945.9,0.0108723]
[1644759312715,3.41611185,2946.3,2945.9,0.0108723]
[1644759313115,3.41611185,2946.3,2945.3,0.00371203]
[1644759313365,3.41611185,2946.3,2946.0,0.85951212]
[1644759314364,3.41611185,2946.3,2946.0,0.84864]
[1644759314564,3.41611185,2946.3,2946.0,0.85951202]
[1644759315565,3.41611185,2946.3,2946.0,0.79864]
[1644759315767,3.41611185,2946.3,2946.0,0.80951202]
[1644759315970,2.31097156,2946.4,2946.0,0.80832131]
[1644759316272,2.96141975,2946.3,2946.0,0.80832131]
[1644759316670,2.96141975,2946.3,2946.0,0.79744929]
[1644759317116,2.96141975,2946.3,2946.0,0.80832131]
[1644759317920,2.96141975,2946.3,2946.0,0.79744929]
[1644759318321,2.96141975,2946.3,2946.0,0.80832131]
[1644759318720,8.67286204,2946.5,2946.0,0.80832131]
[1644759319122,3.3204,2946.5,2946.0,0.79744929]
[1644759319322,3.3204,2946.5,2946.1,0.01087184]
[1644759319523,1.16566999,2946.6,2946.2,0.84843]
[1644759319720,0.01086999,2946.6,2946.2,0.84843]
[1644759320323,3.88353303,2946.9,2946.2,0.84843]
[1644759320766,0.01023821,2946.6,2946.4,0.84849]
[1644759321570,3.88353303,2946.9,2946.4,0.84849]
[1644759321770,0.01023823,2946.6,2946.4,0.84849]
[1644759321968,0.01023823,2946.6,2946.3,1.01570848]
[1644759322468,0.01023823,2946.6,2946.3,0.0102396]
[1644759322669,0.01023823,2946.6,2946.4,0.84849]
[1644759322869,3.3613047,2946.9,2946.4,0.84849]
[1644759323068,0.01023829,2946.6,2946.4,0.84849]
[1644759323268,0.01023829,2946.6,2946.3,0.01023951]
[1644759323870,3.3613047,2946.9,2946.5,0.8485]
[1644759324173,0.01023829,2946.6,2946.5,0.8485]
[1644759325317,3.05613945,2946.7,2946.5,0.8485]
[1644759326321,3.04585889,2946.7,2946.5,0.8485]
[1644759326523,3.05613936,2946.7,2946.5,0.8485]
[1644759326921,0.01028047,2946.7,2946.5,0.8485]
[1644759327522,4.77180834,2946.9,2946.5,0.8485]
[1644759327722,0.01028047,2946.7,2946.5,0.8485]
[1644759328765,3.06915702,2946.9,2946.5,0.8485]
[1644759328966,0.01027762,2946.7,2946.5,0.8485]
[1644759329969,4.89142929,2946.9,2946.5,0.8485]
[1644759330269,0.01027762,2946.7,2946.5,0.8485]
[1644759331074,3.06915702,2946.9,2946.5,0.8485]
[1644759331477,0.01027762,2946.7,2946.5,0.8485]
[1644759332317,1.44364268,2946.6,2946.5,0.8485]
[1644759332515,0.01027781,2946.7,2946.5,0.8485]
[1644759332715,1.44364268,2946.6,2946.5,0.8485]
[1644759335017,0.0102779,2946.7,2946.5,0.8485]
[1644759335218,1.44364268,2946.6,2946.5,0.8485]
[1644759336169,0.01027789,2946.7,2946.5,0.8485]
[1644759336468,1.44364268,2946.6,2946.5,0.8485]
[1644759337471,0.01027789,2946.7,2946.5,0.8485]
[1644759337672,1.44364268,2946.6,2946.3,0.01027944]
[1644759337872,4.6,2946.4,2945.8,0.00371203]
[1644759338071,4.94364268,2946.3,2945.6,0.00371203]
[1644759338373,2.29235268,2946.2,2945.6,0.00371203]
[1644759338571,1.44364268,2946.1,2945.1,0.00371203]
[1644759338772,0.77227449,2945.9,2945.1,0.00371203]
[1644759338971,1.44364268,2945.8,2945.1,0.00371203]
[1644759339621,1.44364268,2945.8,2945.1,0.85251203]
[1644759339924,1.44364268,2945.8,2945.2,0.00371203]
[1644759340218,1.44364268,2945.8,2945.0,0.00371203]
[1644759340418,2.97133781,2945.7,2945.0,0.00371203]
[1644759340718,0.77227449,2945.9,2945.0,0.85233203]
[1644759340923,1.44396414,2945.8,2945.3,0.84866]
[1644759341122,1.44396414,2945.8,2945.4,0.00371203]
[1644759341524,1.44396414,2945.8,2945.1,2.54567]
[1644759341525,1.44396414,2945.8,2945.2,0.00371203]
[1644759341924,4.43171802,2945.8,2945.5,0.84857]
[1644759342127,1.44396414,2945.7,2944.9,0.00371203]
[1644759342324,1.44396414,2945.7,2945.4,0.00903892]
[1644759342325,3.5,2945.6,2945.4,0.00903892]
[1644759342623,1.44396414,2945.5,2945.4,0.00532689]
[1644759343270,1.44396414,2945.5,2944.9,0.00371203]
[1644759343469,1.44396414,2945.5,2945.3,0.01083977]
[1644759344070,2.29280414,2945.4,2945.3,0.01083977]
[1644759344270,5.49336933,2945.4,2945.3,0.01083977]
[1644759344469,5.49336933,2945.4,2944.9,0.00371203]
[1644759344671,4.04940519,2945.4,2945.2,0.01083995]
[1644759344869,0.84884,2945.4,2945.2,0.01083995]
[1644759345069,3.02308917,2945.3,2945.2,0.01083995]
[1644759345270,0.84884,2945.4,2945.2,0.01083995]
[1644759345571,4.61059473,2945.3,2945.1,0.00371203]
[1644759345770,2.99619645,2945.2,2944.9,0.00371203]
[1644759345973,0.84888,2945.1,2944.7,0.04336667]
[1644759346172,0.84888,2945.1,2944.7,0.0470787]
[1644759346373,3.01271824,2945.0,2944.7,0.0470787]
[1644759346774,3.01271824,2945.0,2944.2,0.00371203]
[1644759347021,3.01271824,2945.0,2944.7,0.01084086]
[1644759347022,2.29347103,2944.9,2944.7,0.01084086]
[1644759347216,3.2749839,2944.8,2944.7,0.01084086]
[1644759348015,3.2749839,2944.8,2944.3,0.04708196]
[1644759348016,0.84905,2944.7,2944.3,0.00371203]
[1644759348216,0.84905,2944.7,2944.6,0.01084104]
[1644759348416,3.9495018,2944.7,2944.6,0.01084104]
[1644759349015,3.99260929,2944.7,2944.6,0.01084104]
[1644759349217,3.99260929,2944.7,2944.3,0.00371203]
[1644759349218,3.97236236,2944.7,2944.3,0.00371203]
[1644759349417,3.97236236,2944.7,2944.5,0.01084122]
[1644759349722,3.05784715,2944.6,2944.5,0.01084122]
[1644759350118,3.05784715,2944.6,2944.1,0.69744462]
[1644759350319,3.90695715,2944.6,2944.1,0.70116416]
[1644759350521,0.84911,2944.6,2944.1,0.70116416]
[1644759350973,2.97910557,2944.5,2944.1,0.70116416]
[1644759351375,0.84907,2944.6,2944.1,0.70116416]
[1644759351576,3.34633027,2944.8,2944.2,0.00371954]
[1644759351775,0.00555289,2944.4,2944.3,0.84901]
[1644759352776,0.84903,2944.7,2944.3,0.84901]
[1644759352975,0.84903,2944.7,2944.4,0.00371954]
[1644759353179,0.00555289,2944.5,2944.4,1.70143954]
[1644759353378,0.00555289,2944.5,2944.4,1.69772]
[1644759353978,1.1469,2945.0,2944.4,1.69772]
[1644759354179,1.1469,2945.0,2944.5,0.00371954]
[1644759354380,0.0108405,2944.6,2944.5,0.00371954]
[1644759354615,0.0108405,2944.6,2944.4,1.69772]
[1644759355214,2.98119469,2944.9,2944.4,1.69772]
[1644759355416,0.01084041,2944.6,2944.5,0.00371954]
[1644759355615,0.01084041,2944.6,2944.4,1.69772]
[1644759356420,2.98028262,2944.9,2944.4,1.69772]
[1644759356618,0.01084041,2944.6,2944.5,0.00371954]
[1644759356818,0.01084041,2944.6,2944.4,1.69772]
[1644759357524,0.1696,2945.1,2944.4,1.69772]
[1644759357719,0.1696,2945.1,2944.5,0.00371954]
[1644759357918,0.01084041,2944.6,2944.5,0.00371954]
[1644759358118,0.01084041,2944.6,2944.5,1.69781]
[1644759358768,1.01854,2945.1,2944.5,1.69781]
[1644759358967,4.03428129,2945.1,2944.7,0.84893]
[1644759359167,4.02144005,2945.1,2944.7,0.85264954]
[1644759360071,1.01854,2945.1,2944.7,0.85264954]
[1644759360266,0.01083969,2945.0,2944.7,0.85264954]
[1644759360469,0.85981969,2945.0,2944.7,0.85264954]
[1644759361271,0.84898,2945.0,2944.7,0.85264954]
[1644759361470,0.85981978,2945.0,2944.7,0.85264954]
[1644759361671,0.01083978,2945.0,2944.7,0.85264954]
[1644759362119,0.01083978,2945.0,2944.7,0.00371954]
[1644759362418,1.69801,2945.1,2944.7,0.00371954]
[1644759362623,0.01083978,2945.0,2944.7,0.00371954]
[1644759363423,0.85977978,2945.0,2944.7,0.00371954]
[1644759363624,0.84894,2945.0,2944.7,0.00371954]
[1644759363823,0.85977978,2945.0,2944.7,0.00371954]
[1644759364627,0.85977978,2945.0,2944.7,0.85267954]
[1644759364826,0.84894,2945.0,2944.7,0.00371954]
[1644759365027,0.85977978,2945.0,2944.7,0.00371954]
[1644759365527,0.85977978,2945.0,2944.3,1.70169954]
[1644759365969,0.84894,2945.0,2944.3,1.70169954]
[1644759366171,0.01084014,2944.8,2944.4,0.84901]
[1644759366372,0.01084014,2944.8,2944.5,0.00371954]
[1644759366772,0.01084014,2944.8,2944.0,0.01456279]
[1644759366972,0.1698,2944.7,2944.0,0.01084325]
[1644759367172,0.1698,2944.7,2943.5,0.00371954]
[1644759367373,0.1698,2944.7,2944.0,0.00529024]
[1644759367775,1.01882,2944.7,2944.0,0.00529024]
[1644759368474,1.01882,2944.7,2943.6,0.00371954]
[1644759368475,0.84923,2944.6,2943.6,0.00371954]
[1644759368674,0.84923,2944.6,2944.0,0.00529024]
[1644759368675,0.1698,2944.5,2944.0,0.00529024]
[1644759368873,4.13876885,2944.5,2944.0,0.00529024]
[1644759369074,3.96896885,2944.5,2944.0,0.00529024]
[1644759369521,3.96896885,2944.5,2943.6,0.00371954]
[1644759369522,0.84929,2944.4,2943.6,0.00371954]
[1644759369815,3.71751296,2944.3,2944.0,0.01084397]
[1644759370421,0.84937,2944.2,2944.0,0.01084397]
[1644759370734,0.84937,2944.2,2943.2,0.04338672]
[1644759370735,0.0325319,2943.9,2943.2,0.04338672]
[1644759370923,0.0325319,2943.9,2942.5,0.25]
[1644759370924,0.1698,2943.8,2942.5,0.25]
[1644759371121,3.6698,2943.8,2942.5,0.25]
[1644759371527,1.02333005,2943.1,2942.5,0.25]
[1644759371723,1.02333005,2943.1,2942.4,1.69903]
[1644759372725,3.13108828,2943.0,2942.7,0.84952]
[1644759373570,3.13108828,2943.0,2942.7,0.85481101]
[1644759374071,3.98062828,2943.0,2942.7,0.00529101]
[1644759374470,3.98062828,2943.0,2941.7,1.10898675]
[1644759374670,3.98062828,2943.0,2942.7,0.01084593]
[1644759375270,3.3212,2942.9,2942.7,0.01084593]
[1644759375571,3.3212,2942.9,2941.7,0.26018675]
[1644759375572,3.80051462,2942.8,2941.8,1.69937]
[1644759375770,1.18504819,2942.5,2941.8,1.99937]
[1644759375972,1.18504819,2942.5,2942.2,0.04339059]
[1644759375973,3.02041504,2942.5,2942.2,0.04339059]
[1644759376170,3.5,2942.8,2942.2,0.04339059]
[1644759376571,1.69957,2942.6,2942.2,0.04339059]
[1644759376771,1.69957,2942.6,2941.7,0.25]
[1644759377031,1.69957,2942.6,2941.3,7.48]
[1644759377032,0.84973,2942.4,2941.3,7.48]
[1644759377222,4.40123439,2942.5,2942.3,0.01084674]
[1644759377421,0.90123439,2942.5,2942.3,0.01084674]
[1644759378023,0.90123439,2942.5,2941.7,1.69941]
[1644759378424,0.90123439,2942.5,2942.3,0.01084674]
[1644759379024,0.84976,2942.4,2942.3,0.01084674]
[1644759379224,0.84976,2942.4,2941.7,1.69941]
[1644759379625,0.84976,2942.4,2942.3,0.01084674]
[1644759379827,3.87536882,2942.4,2942.3,0.01084674]
[1644759380428,3.87536882,2942.4,2941.4,0.25]
[1644759380627,1.1798656,2941.9,2941.4,0.1699]
[1644759380879,1.1798656,2941.9,2941.8,0.04339382]
[1644759381074,4.16869096,2941.9,2941.8,0.04339382]
[1644759381278,1.1798656,2941.9,2941.8,0.04339382]
[1644759381479,4.6,2941.8,2940.6,0.4198]
[1644759381677,4.6,2941.8,2940.6,0.25]
[1644759381678,3.5,2941.7,2940.6,0.25]
[1644759381875,3.5,2941.7,2940.1,2.66338087]
[1644759381876,0.8501,2941.5,2940.1,2.66338087]
[1644759382073,0.93496477,2941.2,2940.2,0.85016]
[1644759382275,0.93496477,2941.2,2940.2,1.02016]
[1644759382475,3.5053,2941.7,2940.4,19.91]
[1644759382476,0.17,2941.5,2940.4,19.91]
[1644759382675,1.2058,2941.8,2940.4,19.91]
[1644759382875,4.7058,2941.8,2940.6,7.48]
[1644759383077,4.7058,2941.8,2940.8,0.84981]
[1644759383276,4.7058,2941.8,2940.8,1.44981]
[1644759383479,1.10069542,2941.7,2940.8,0.3]
[1644759383883,1.10069542,2941.7,2940.7,1.86942]
[1644759384079,3.5,2941.6,2940.7,0.1698]
[1644759385317,0.886836,2941.2,2940.7,0.1698]
[1644759385518,1.736986,2941.2,2941.0,0.01084317]
[1644759385717,2.97510419,2941.1,2941.0,0.01084317]
[1644759385922,1.736986,2941.2,2941.0,0.01084317]
[1644759386323,2.98440298,2941.1,2941.0,0.01084317]
[1644759386526,2.98440298,2941.1,2940.3,0.00371092]
[1644759386923,2.98440298,2941.1,2941.0,0.01084326]
[1644759387323,3.98440298,2941.1,2941.0,0.01084326]
[1644759387723,3.98440298,2941.1,2940.1,0.00371092]
[1644759387925,0.85031,2940.9,2940.1,0.00371092]
[1644759388122,3.36081502,2940.8,2940.5,0.04337989]
[1644759388781,1.0031187,2940.6,2940.5,0.04337989]
[1644759388979,4.12166708,2940.6,2940.1,0.00371092]
[1644759389182,4.12166708,2940.6,2940.5,0.01084406]
[1644759389380,1.0031187,2940.6,2940.5,0.01084406]
[1644759389579,4.12177784,2940.6,2940.5,0.01084406]
[1644759389782,3.11865914,2940.6,2940.5,0.01084406]
[1644759390084,2.9893468,2940.8,2939.9,0.00371092]
[1644759390682,2.9893468,2940.8,2939.9,1.70404092]
[1644759390884,0.85696562,2940.9,2939.9,1.70404092]
[1644759391283,0.85696562,2940.9,2940.0,1.06117605]
[1644759391484,0.85696562,2940.9,2940.1,0.00371092]
[1644759391687,1.1333,2941.0,2940.2,0.85011]
[1644759391888,1.1333,2941.0,2940.3,0.00371092]
[1644759392527,1.3033,2941.0,2940.3,0.00371092]
[1644759392927,3.08801411,2940.9,2940.3,0.85386092]
[1644759393928,3.08801411,2940.9,2940.5,0.01046285]
[1644759394129,0.17,2941.0,2940.5,0.01046285]
[1644759394333,2.98321977,2941.3,2940.5,0.01046285]
[1644759394532,3.05971675,2941.2,2940.5,0.01046285]
[1644759394930,3.05971675,2941.2,2940.1,0.00371092]
[1644759395132,3.05971675,2941.2,2940.4,1.7001]
[1644759395332,3.05971675,2941.2,2940.7,0.01046241]
[1644759395532,3.05971675,2941.2,2940.8,0.85002]
[1644759395767,4.06404081,2941.2,2940.8,0.00371092]
[1644759395973,4.06404081,2941.2,2940.7,0.01046241]
[1644759396171,4.06404081,2941.2,2940.3,0.00371092]
[1644759396371,4.06404081,2941.2,2940.9,0.01022898]
[1644759396773,5.2500165,2941.2,2940.9,0.01022898]
[1644759397372,5.2500165,2941.2,2940.2,0.00371092]
[1644759397573,5.2500165,2941.2,2940.9,0.01022889]
[1644759397776,0.02045777,2940.8,2940.5,0.04092172]
[1644759397975,0.87075777,2940.8,2940.5,0.04092172]
[1644759398375,1.87075777,2940.8,2940.5,0.04092172]
[1644759398572,1.87075777,2940.8,2939.9,1.10009056]
[1644759398573,0.87075777,2940.8,2939.9,1.10009056]
[1644759398777,4.37075777,2940.8,2939.9,0.00371092]
[1644759399821,0.8504,2940.4,2939.9,0.00371092]
[1644759400022,4.3504,2940.4,2939.9,0.00371092]
[1644759400923,24.3504,2940.4,2939.9,0.00371092]
[1644759401623,0.8485755,2940.0,2939.9,0.00371092]
[1644759401823,0.8485755,2940.0,2939.4,0.00371092]
[1644759402023,3.87068687,2940.0,2939.4,0.85417092]
[1644759402226,0.8485755,2940.0,2939.4,0.75046]
[1644759402423,3.00011257,2940.0,2939.6,0.01024691]
[1644759402625,3.13679245,2940.0,2939.6,0.01024691]
[1644759402823,3.00633535,2940.0,2939.6,0.01024691]
[1644759403024,3.81986489,2940.0,2939.6,0.01024691]
[1644759403468,3.81986489,2940.0,2939.2,0.00371092]
[1644759403673,3.81986489,2940.0,2939.7,0.01042084]
[1644759404672,1.01816067,2939.7,2939.0,0.00371092]
[1644759404880,0.85058,2939.6,2939.3,0.04168928]
[1644759405072,8.27936915,2939.9,2939.3,0.04168928]
[1644759405672,6.57821915,2939.9,2939.3,0.04168928]
[1644759405875,7.62663749,2939.9,2939.0,0.00371092]
[1644759406074,8.47713749,2939.9,2939.5,0.0104212]
[1644759406676,3.2881,2939.9,2939.5,0.0104212]
[1644759406876,0.17,2940.1,2939.5,0.0104212]
[1644759407117,7.3735,2940.2,2938.8,19.91]
[1644759407118,7.3735,2940.2,2939.6,0.1845]
[1644759407319,0.8504,2940.1,2939.7,0.00371092]
[1644759407524,0.8504,2940.1,2939.6,0.194734]
[1644759407723,1.09549305,2940.0,2939.7,0.00371092]
[1644759407923,1.09549305,2940.0,2939.6,0.194734]
[1644759408123,1.26549305,2940.0,2939.6,0.194734]
[1644759408323,1.94604305,2940.0,2939.6,0.1845]
[1644759408525,1.94604305,2940.0,2939.7,0.01023382]
[1644759408724,0.85055,2940.0,2939.7,0.01023382]
[1644759409423,0.85055,2940.0,2939.6,0.1845]
[1644759409625,0.85055,2940.0,2939.7,0.03378579]
[1644759410785,0.85055,2940.0,2939.7,0.02353952]
[1644759410975,0.85055,2940.0,2939.8,0.1845]
[1644759411575,0.85039,2940.1,2939.8,0.1845]
[1644759411776,3.6998,2940.2,2939.8,0.1845]
[1644759412176,3.6998,2940.2,2939.8,0.19474618]
[1644759412979,3.5121,2940.3,2939.8,1.03487]
[1644759413278,21.2304,2940.4,2939.9,0.01395693]
[1644759413677,21.2304,2940.4,2940.0,0.1845]
[1644759414077,22.08071,2940.4,2940.0,0.1845]
[1644759414280,20.85031,2940.4,2940.0,0.1845]
[1644759414519,20.0,2940.4,2940.1,0.01005271]
[1644759414720,20.0,2940.4,2940.1,0.01376363]
[1644759415320,20.0,2940.4,2940.2,0.85004]
[1644759415521,20.0,2940.4,2940.3,0.17]
[1644759415720,20.0,2940.4,2940.2,0.85375092]
[1644759416722,20.0,2940.4,2940.3,0.1845]
[1644759416923,20.0,2940.4,2940.3,3.59743388]
[1644759417121,20.0,2940.4,2940.3,3.54524561]
[1644759417630,20.0,2940.4,2940.3,0.1845]
[1644759417832,20.0,2940.4,2940.3,3.51820134]
[1644759418030,20.0,2940.4,2940.3,20.3945]
[1644759418290,14.62559155,2940.4,2940.3,21.5645]
[1644759418878,4.17933557,2940.4,2940.3,21.5645]
[1644759419082,0.02045777,2940.8,2940.6,0.84974]
[1644759419281,0.02045777,2940.8,2940.7,19.91]
[1644759419483,0.02045777,2940.8,2940.6,3.01670092]
[1644759419882,0.02045777,2940.8,2940.6,22.92670092]
[1644759420082,0.02045777,2940.8,2940.7,0.1845]
[1644759420684,2.81694161,2942.3,2940.9,4.6]
[1644759420889,0.8505,2942.4,2941.5,19.91]
[1644759420890,1.44606972,2942.2,2941.5,19.91]
[1644759421084,1.44606972,2942.3,2941.7,19.91]
[1644759421284,3.3660927,2942.8,2941.8,20.91]
[1644759421486,1.44569759,2942.7,2941.8,21.0798]
[1644759421786,1.44569759,2942.6,2941.8,21.0798]
[1644759422022,1.44569759,2942.5,2941.8,21.92932]
[1644759422223,1.44569759,2942.4,2941.9,0.3]
[1644759422523,4.16156443,2943.2,2942.0,0.1698]
[1644759422722,1.44561846,2943.1,2942.0,0.1698]
[1644759422926,3.08827631,2943.1,2942.0,20.2643]
[1644759423122,0.64766443,2943.0,2942.1,3.46295143]
[1644759423324,2.09328289,2943.0,2942.0,18.55246874]
[1644759423522,1.44561846,2942.9,2942.0,18.55246874]
[1644759423724,1.44561846,2942.8,2942.2,0.84942]
[1644759423927,1.44561846,2942.7,2942.2,0.84942]
[1644759424126,1.44561846,2942.6,2942.2,0.84942]
[1644759424326,1.16479342,2943.1,2942.2,0.84942]
[1644759424528,1.44556791,2943.0,2942.2,0.84942]
[1644759424726,1.44556791,2943.0,2942.3,0.84945]
[1644759425227,0.0108394,2942.8,2942.3,1.69883]
[1644759425428,1.44556791,2942.7,2942.3,0.84938]
[1644759426077,1.44556791,2942.7,2942.4,0.1845]
[1644759426275,1.44556791,2942.7,2942.5,0.84939]
[1644759426475,1.45640758,2942.6,2942.5,0.84939]
[1644759426875,0.01083967,2942.6,2942.5,0.84939]
[1644759427476,0.1698,2943.1,2942.5,0.84939]
[1644759427677,0.01083958,2942.7,2942.5,0.84939]
[1644759428576,0.89846764,2943.3,2942.5,0.84939]
[1644759428777,1.44552174,2943.2,2942.5,0.84939]
[1644759428977,0.01083949,2942.7,2942.5,0.84939]
[1644759429276,0.01083949,2942.7,2942.6,0.1845]
[1644759429926,0.89846764,2943.3,2942.6,0.1845]
[1644759430226,0.0108394,2942.8,2942.6,0.1845]
[1644759431129,0.1698,2943.2,2942.7,0.84952]
[1644759431331,0.01083932,2942.8,2942.7,0.84952]
[1644759431930,0.01083932,2942.8,2942.6,0.1845]
[1644759432329,0.1698,2943.5,2942.6,0.1845]
[1644759432529,0.01083932,2942.8,2942.6,0.1845]
[1644759433570,1.89970999,2943.1,2942.6,0.1845]
[1644759433773,0.01083932,2942.8,2942.6,0.1845]
[1644759434376,0.86053932,2942.8,2942.6,0.1845]
[1644759434575,1.61550535,2942.7,2942.6,0.1845]
[1644759434974,1.61550535,2942.7,2942.4,0.1845]
[1644759435175,2.53903113,2942.6,2942.4,0.1845]
[1644759435374,0.1698,2942.7,2942.4,0.1845]
[1644759435375,1.01963,2942.7,2942.4,0.1845]
[1644759436173,1.03046958,2942.7,2942.4,0.1845]
[1644759436575,1.44581361,2942.6,2942.4,0.1845]
[1644759437222,2.04581361,2942.6,2942.4,0.1845]
[1644759437422,2.41038759,2942.5,2942.4,0.1845]
[1644759437621,2.58018759,2942.5,2942.4,0.1845]
[1644759438021,1.13437398,2942.5,2942.4,0.1845]
[1644759438525,0.96457398,2942.5,2941.7,0.1845]
[1644759438722,0.84983,2942.4,2941.7,0.1845]
[1644759439725,0.01084047,2942.2,2941.7,0.1845]
[1644759439924,0.86073047,2942.2,2941.7,0.1845]
[1644759440784,0.84989,2942.2,2941.7,0.1845]
[1644759440979,0.01084065,2942.1,2941.7,1.03433]
[1644759441778,0.01084065,2942.1,2941.7,0.84983]
[1644759441979,1.1698,2942.6,2941.7,0.84983]
[1644759442178,0.01084074,2942.0,2941.7,0.84983]
[1644759443179,1.17243178,2942.6,2941.7,0.84983]
[1644759443381,2.00263178,2942.6,2941.7,1.01963]
[1644759443580,0.84976,2942.4,2941.7,1.01963]
[1644759444080,2.00263178,2942.6,2941.7,1.01963]
[1644759444081,1.00263178,2942.6,2941.7,1.01963]
[1644759444380,1.00263178,2942.6,2942.0,0.84975]
[1644759444624,0.01084652,2942.2,2942.0,0.84975]
[1644759445423,3.3916,2942.7,2942.0,0.84975]
[1644759445623,1.44583029,2942.6,2942.0,0.84975]
[1644759445829,0.01084643,2942.2,2942.0,0.84975]
[1644759446629,0.01084643,2942.2,2942.1,3.54922477]
[1644759446829,3.3916,2942.7,2942.1,1.86896]
[1644759447032,0.01084643,2942.2,2942.1,5.20251531]
[1644759447229,0.01084643,2942.2,2942.1,1.86896]
[1644759447530,0.00971191,2942.2,2942.1,1.86896]
[1644759447728,0.00971191,2942.2,2942.1,2.05346]
[1644759447929,0.00971191,2942.2,2942.1,1.88366]
[1644759448128,2.29079069,2943.1,2942.1,1.88366]
[1644759448375,1.44566087,2943.0,2942.1,0.1845]
[1644759448778,1.06519137,2942.9,2942.1,0.1845]
[1644759448982,1.23499137,2942.9,2942.1,0.1845]
[1644759449479,0.00499806,2942.6,2942.1,0.20870441]
[1644759449680,0.84975,2942.4,2942.1,0.20870441]
[1644759449878,0.00499806,2942.6,2942.1,0.20870441]
[1644759450282,1.69949,2942.8,2942.2,0.8497]
[1644759450680,0.01024297,2942.5,2942.2,0.8497]
[1644759450881,0.84975,2942.4,2942.1,0.20870441]
[1644759451080,0.84975,2942.4,2942.3,0.1845]
[1644759452624,0.01024297,2942.5,2942.3,0.1845]
[1644759452825,0.84971,2942.6,2942.3,0.1845]
[1644759453025,0.01084598,2942.5,2942.3,0.1845]
[1644759453926,0.84971,2942.6,2942.3,0.84969]
[1644759454127,0.01084589,2942.5,2942.3,0.84969]
[1644759454527,0.01084589,2942.5,2942.3,0.87389255]
[1644759455126,0.1698,2943.0,2942.3,0.87389255]
[1644759455325,2.39795473,2942.9,2942.5,0.84961]
[1644759455526,2.39795473,2942.9,2942.3,0.02420255]
[1644759455527,0.69242471,2942.4,2942.3,0.02420255]
[1644759456786,0.69242471,2942.4,2942.3,0.87389255]
[1644759457586,0.69242471,2942.4,2942.3,1.05839255]
[1644759459625,2.13809599,2942.4,2942.3,1.05839255]